fUST/lending_fUST_20250206
["ID","MTS","AMOUNT","RATE_DAILY","PERIOD"]
[351810239,1738797038842,-500.0,0.00013698,2]
[351810241,1738797038851,-500.0,0.00013698,2]
[351810243,1738797038861,-1000.0,0.00013698,2]
[351810245,1738797038870,-676.22,0.00013698,2]
[351810247,1738797038880,-516.77,0.00013698,2]
[351810249,1738797038889,-500.0,0.00013698,2]
[351810251,1738797038899,-500.0,0.00013698,2]
[351810253,1738797038908,-500.0,0.00013698,2]
[351810255,1738797038918,-500.0,0.00013698,2]
[351810257,1738797038927,-502.49791711,0.00013698,2]
[351810260,1738797038949,-251.68208289,0.00013698,2]
[351810262,1738797038959,-817.6,0.00013698,2]
[351810264,1738797038969,-500.0,0.00013698,2]
[351810266,1738797038979,-500.0,0.00013698,2]
[351810268,1738797038988,-500.0,0.00013698,2]
[351810270,1738797038998,-500.0,0.00013698,2]
[351810272,1738797039007,-500.0,0.00013698,2]
[351810274,1738797039016,-561.21,0.00013698,2]
[351810276,1738797039025,-580.45,0.00013698,2]
[351810278,1738797039034,-500.0,0.00013698,2]
[351810280,1738797039044,-617.59084311,0.00013698,2]
[351810282,1738797039054,-1524.51,0.00013698,2]
[351810284,1738797039063,-500.0,0.00013698,2]
[351810286,1738797039073,-500.0,0.00013698,2]
[351810289,1738797039083,-594.77925672,0.00013698,2]
[351810290,1738797039092,-500.0,0.00013698,2]
[351810293,1738797039102,-500.0,0.00013698,2]
[351810294,1738797039112,-500.0,0.00013698,2]
[351810296,1738797039122,-500.0,0.00013698,2]
[351810298,1738797039132,-500.0,0.00013698,2]
[351810301,1738797039141,-527.07115794,0.00013698,2]
[351810322,1738797039150,-500.0,0.00013698,2]
[351810325,1738797039346,-500.0,0.00013698,2]
[351810327,1738797039356,-695.55,0.00013698,2]
[351810329,1738797039366,-191.37383382,0.00013698,2]
[351810331,1738797039376,-928.45,0.00013698,2]
[351810333,1738797039386,-500.0,0.00013698,2]
[351810335,1738797039395,-500.0,0.00013698,2]
[351810337,1738797039404,-500.0,0.00013698,2]
[351810339,1738797039413,-1994.48,0.00013698,2]
[351810341,1738797039423,-500.0,0.00013698,2]
[351810343,1738797039432,-500.0,0.00013698,2]
[351810345,1738797039441,-500.0,0.00013698,2]
[351810347,1738797039451,-500.0,0.00013698,2]
[351810349,1738797039460,-2114.21,0.00013698,2]
[351810351,1738797039469,-500.0,0.00013698,2]
[351810353,1738797039479,-500.0,0.00013698,2]
[351810355,1738797039488,-500.0,0.00013698,2]
[351810358,1738797039497,-500.0,0.00013698,2]
[351810360,1738797039506,-500.0,0.00013698,2]
[351810362,1738797039520,-500.0,0.00013698,2]
[351810363,1738797039529,-500.0,0.00013698,2]
[351810366,1738797039538,-602.59,0.00013698,2]
[351810368,1738797039547,-500.0,0.00013698,2]
[351810369,1738797039556,-503.13950756,0.00013698,2]
[351810371,1738797039565,-500.0,0.00013698,2]
[351810373,1738797039579,-508.14,0.00013698,2]
[351810375,1738797039588,-625.28,0.00013698,2]
[351810377,1738797039597,-500.0,0.00013698,2]
[351810379,1738797039607,-500.0,0.00013698,2]
[351810381,1738797039618,-656.55,0.00013698,2]
[351810383,1738797039627,-500.0,0.00013698,2]
[351810386,1738797039636,-500.0,0.00013698,2]
[351810388,1738797039646,-500.0,0.00013698,2]
[351810390,1738797039657,-500.0,0.00013698,2]
[351810391,1738797039669,-500.0,0.00013698,2]
[351810392,1738797039677,-1718.69,0.00013698,2]
[351810393,1738797039687,-500.0,0.00013698,2]
[351810394,1738797039696,-500.0,0.00013698,2]
[351810395,1738797039705,-502.42819887,0.00013698,2]
[351810396,1738797039714,-500.0,0.00013698,2]
[351810397,1738797039723,-951.29,0.00013698,2]
[351810398,1738797039732,-500.0,0.00013698,2]
[351810399,1738797039742,-889.74,0.00013698,2]
[351810400,1738797039751,-500.0,0.00013698,2]
[351810401,1738797039760,-500.0,0.00013698,2]
[351810402,1738797039769,-500.0,0.00013698,2]
[351810403,1738797039778,-500.0,0.00013698,2]
[351810404,1738797039787,-500.0,0.00013698,2]
[351810405,1738797039796,-1299.34,0.00013698,2]
[351810407,1738797039805,-500.0,0.00013698,2]
[351810409,1738797039814,-500.0,0.00013698,2]
[351810411,1738797039823,-500.0,0.00013698,2]
[351810413,1738797039833,-500.0,0.00013698,2]
[351810415,1738797039842,-500.0,0.00013698,2]
[351810417,1738797039852,-505.44800151,0.00013698,2]
[351810419,1738797039861,-500.0,0.00013698,2]
[351810421,1738797039870,-500.0,0.00013698,2]
[351810423,1738797039879,-1226.32,0.00013698,2]
[351810425,1738797039888,-500.0,0.00013698,2]
[351810427,1738797039897,-821.62,0.00013698,2]
[351810429,1738797039908,-500.0,0.00013698,2]
[351810431,1738797039918,-438.22386094,0.00013698,2]
[351810433,1738797039927,-500.0,0.00013698,2]
[351810435,1738797039937,-500.0,0.00013698,2]
[351810437,1738797039946,-1364.15,0.00013698,2]
[351810439,1738797039956,-1083.86,0.00013698,2]
[351810441,1738797039965,-500.0,0.00013698,2]
[351810443,1738797039975,-500.0,0.00013698,2]
[351810445,1738797039985,-500.0,0.00013698,2]
[351810447,1738797039994,-361.19426287,0.00013698,2]
[351810449,1738797040003,-794.72,0.00013698,2]
[351810451,1738797040013,-507.95164527,0.00013698,2]
[351810453,1738797040022,-504.31827618,0.00013698,2]
[351810455,1738797040032,-500.0,0.00013698,2]
[351810457,1738797040041,-500.0,0.00013698,2]
[351810459,1738797040050,-500.0,0.00013698,2]
[351810461,1738797040060,-500.0,0.00013698,2]
[351810463,1738797040069,-500.0,0.00013698,2]
[351810465,1738797040079,-500.0,0.00013698,2]
[351810467,1738797040088,-500.0,0.00013698,2]
[351810470,1738797040098,-500.0,0.00013698,2]
[351810472,1738797040107,-500.0,0.00013698,2]
[351810474,1738797040117,-500.0,0.00013698,2]
[351810476,1738797040127,-500.0,0.00013698,2]
[351810478,1738797040136,-500.0,0.00013698,2]
[351810480,1738797040146,-1137.98,0.00013698,2]
[351810483,1738797040155,-500.0,0.00013698,2]
[351810485,1738797040165,-500.0,0.00013698,2]
[351810487,1738797040174,-938.54,0.00013698,2]
[351810489,1738797040184,-241.6954866,0.00013698,2]
[351810490,1738797040194,-658.71,0.00013698,2]
[351810492,1738797040203,-321.82871719,0.00013698,2]
[351810495,1738797040212,-500.0,0.00013698,2]
[351810497,1738797040221,-500.0,0.00013698,2]
[351810499,1738797040231,-500.0,0.00013698,2]
[351810502,1738797040241,-500.0,0.00013698,2]
[351810505,1738797040250,-531.19,0.00013698,2]
[351810507,1738797040260,-500.0,0.00013698,2]
[351810509,1738797040269,-500.0,0.00013698,2]
[351810511,1738797040279,-3268.13,0.00013698,2]
[351810513,1738797040288,-500.0,0.00013698,2]
[351810515,1738797040298,-500.0,0.00013698,2]
[351810517,1738797040307,-500.0,0.00013698,2]
[351810519,1738797040317,-500.0,0.00013698,2]
[351810521,1738797040326,-500.0,0.00013698,2]
[351810523,1738797040335,-500.0,0.00013698,2]
[351810525,1738797040345,-500.0,0.00013698,2]
[351810527,1738797040354,-500.0,0.00013698,2]
[351810529,1738797040363,-2109.0,0.00013698,2]
[351810531,1738797040373,-500.0,0.00013698,2]
[351810533,1738797040383,-500.0,0.00013698,2]
[351810535,1738797040392,-352.54752496,0.00013698,2]
[351810537,1738797040401,-500.0,0.00013698,2]
[351810539,1738797040411,-504.88227771,0.00013698,2]
[351810541,1738797040421,-500.0,0.00013698,2]
[351810543,1738797040430,-500.0,0.00013698,2]
[351810545,1738797040440,-500.81490185,0.00013698,2]
[351810547,1738797040450,-500.0,0.00013698,2]
[351810549,1738797040460,-500.0,0.00013698,2]
[351810551,1738797040469,-500.0,0.00013698,2]
[351810553,1738797040478,-547.6,0.00013698,2]
[351810555,1738797040488,-3358.87,0.00013698,2]
[351810557,1738797040501,-500.0,0.00013698,2]
[351810559,1738797040511,-500.0,0.00013698,2]
[351810561,1738797040520,-500.0,0.00013698,2]
[351810563,1738797040529,-500.0,0.00013698,2]
[351810565,1738797040539,-500.0,0.00013698,2]
[351810567,1738797040549,-500.0,0.00013698,2]
[351810569,1738797040559,-799.75,0.00013698,2]
[351810571,1738797040568,-500.0,0.00013698,2]
[351810573,1738797040582,-211.74345682,0.00013698,2]
[351810575,1738797040592,-500.0,0.00013698,2]
[351810577,1738797040602,-555.67,0.00013698,2]
[351810579,1738797040612,-503.79388325,0.00013698,2]
[351810581,1738797040622,-500.0,0.00013698,2]
[351810583,1738797040632,-500.0,0.00013698,2]
[351810585,1738797040641,-500.0,0.00013698,2]
[351810587,1738797040652,-937.41,0.00013698,2]
[351810589,1738797040662,-500.0,0.00013698,2]
[351810591,1738797040671,-687.13,0.00013698,2]
[351810593,1738797040681,-1781.67,0.00013698,2]
[351810595,1738797040690,-500.0,0.00013698,2]
[351810597,1738797040699,-500.0,0.00013698,2]
[351810599,1738797040709,-540.91309947,0.00013698,2]
[351810601,1738797040719,-500.0,0.00013698,2]
[351810603,1738797040728,-500.0,0.00013698,2]
[351810605,1738797040739,-1561.1,0.00013698,2]
[351810607,1738797040748,-500.0,0.00013698,2]
[351810609,1738797040757,-500.0,0.00013698,2]
[351810612,1738797040767,-500.0,0.00013698,2]
[351810613,1738797040777,-500.0,0.00013698,2]
[351810615,1738797040786,-500.0,0.00013698,2]
[351810618,1738797040796,-500.0,0.00013698,2]
[351810620,1738797040805,-500.0,0.00013698,2]
[351810621,1738797040815,-500.0,0.00013698,2]
[351810624,1738797040825,-500.0,0.00013698,2]
[351810626,1738797040834,-571.8211526,0.00013698,2]
[351810628,1738797040843,-1311.27,0.00013698,2]
[351810630,1738797040852,-505.91623262,0.00013698,2]
[351810632,1738797040863,-500.0,0.00013698,2]
[351810634,1738797040872,-500.0,0.00013698,2]
[351810636,1738797040883,-500.57867955,0.00013698,2]
[351810638,1738797040893,-500.0,0.00013698,2]
[351810640,1738797040902,-505.43571866,0.00013698,2]
[351810642,1738797040912,-500.0,0.00013698,2]
[351810643,1738797040922,-519.1702499,0.00013698,2]
[351810645,1738797040931,-500.0,0.00013698,2]
[351810647,1738797040940,-500.0,0.00013698,2]
[351810649,1738797040949,-500.0,0.00013698,2]
[351810651,1738797040959,-1382.54,0.00013698,2]
[351810654,1738797040968,-698.05,0.00013698,2]
[351810656,1738797040978,-500.0,0.00013698,2]
[351810658,1738797040987,-500.0,0.00013698,2]
[351810660,1738797040996,-732.1,0.00013698,2]
[351810662,1738797041006,-525.29715194,0.00013698,2]
[351810664,1738797041015,-500.0,0.00013698,2]
[351810666,1738797041025,-501.98189567,0.00013698,2]
[351810668,1738797041035,-500.0,0.00013698,2]
[351810670,1738797041045,-500.0,0.00013698,2]
[351810672,1738797041054,-500.0,0.00013698,2]
[351810674,1738797041064,-500.0,0.00013698,2]
[351810676,1738797041073,-500.0,0.00013698,2]
[351810678,1738797041083,-500.0,0.00013698,2]
[351810680,1738797041092,-912.24,0.00013698,2]
[351810682,1738797041101,-770.08,0.00013698,2]
[351810684,1738797041111,-512.77007859,0.00013698,2]
[351810686,1738797041120,-500.0,0.00013698,2]
[351810688,1738797041129,-500.0,0.00013698,2]
[351810690,1738797041140,-1172.19,0.00013698,2]
[351810692,1738797041149,-500.0,0.00013698,2]
[351810694,1738797041158,-500.0,0.00013698,2]
[351810696,1738797041169,-500.0,0.00013698,2]
[351810698,1738797041179,-500.0,0.00013698,2]
[351810700,1738797041188,-502.13000181,0.00013698,2]
[351810702,1738797041198,-500.0,0.00013698,2]
[351810704,1738797041207,-500.0,0.00013698,2]
[351810706,1738797041217,-671.39,0.00013698,2]
[351810708,1738797041226,-500.0,0.00013698,2]
[351810710,1738797041235,-3998.17,0.00013698,2]
[351810712,1738797041245,-500.0,0.00013698,2]
[351810714,1738797041254,-500.0,0.00013698,2]
[351810716,1738797041264,-673.5,0.00013698,2]
[351810718,1738797041273,-500.0,0.00013698,2]
[351810720,1738797041283,-914.46,0.00013698,2]
[351810722,1738797041292,-555.84,0.00013698,2]
[351810724,1738797041302,-500.0,0.00013698,2]
[351810726,1738797041311,-500.0,0.00013698,2]
[351810728,1738797041321,-500.0,0.00013698,2]
[351810730,1738797041331,-2046.39,0.00013698,2]
[351810733,1738797041340,-836.22,0.00013698,2]
[351810734,1738797041349,-500.0,0.00013698,2]
[351810737,1738797041359,-500.0,0.00013698,2]
[351810739,1738797041368,-500.0,0.00013698,2]
[351810741,1738797041378,-500.0,0.00013698,2]
[351810743,1738797041387,-500.0,0.00013698,2]
[351810744,1738797041397,-1677.9,0.00013698,2]
[351810746,1738797041407,-812.25,0.00013698,2]
[351810749,1738797041417,-720.5,0.00013698,2]
[351810751,1738797041428,-1103.25,0.00013698,2]
[351810752,1738797041437,-153.94178851,0.00013698,2]
[351810754,1738797041448,-500.0,0.00013698,2]
[351810757,1738797041459,-500.0,0.00013698,2]
[351810759,1738797041472,-1767.95,0.00013698,2]
[351810761,1738797041482,-500.0,0.00013698,2]
[351810763,1738797041492,-612.16,0.00013698,2]
[351810765,1738797041501,-500.0,0.00013698,2]
[351810767,1738797041511,-573.65265683,0.00013698,2]
[351810769,1738797041520,-500.0,0.00013698,2]
[351810771,1738797041530,-388.39298364,0.00013698,2]
[351810773,1738797041539,-500.0,0.00013698,2]
[351810775,1738797041549,-522.16,0.00013698,2]
[351810777,1738797041559,-500.0,0.00013698,2]
[351810779,1738797041568,-500.0,0.00013698,2]
[351810781,1738797041581,-661.44,0.00013698,2]
[351810783,1738797041591,-500.0,0.00013698,2]
[351810785,1738797041600,-500.0,0.00013698,2]
[351810787,1738797041609,-500.0,0.00013698,2]
[351810789,1738797041621,-500.0,0.00013698,2]
[351810791,1738797041631,-500.0,0.00013698,2]
[351810793,1738797041640,-500.0,0.00013698,2]
[351810795,1738797041651,-500.0,0.00013698,2]
[351810797,1738797041664,-500.0,0.00013698,2]
[351810799,1738797041673,-500.0,0.00013698,2]
[351810801,1738797041683,-500.0,0.00013698,2]
[351810803,1738797041692,-500.0,0.00013698,2]
[351810805,1738797041702,-500.0,0.00013698,2]
[351810807,1738797041711,-532.84,0.00013698,2]
[351810809,1738797041721,-926.56,0.00013698,2]
[351810811,1738797041732,-1162.52,0.00013698,2]
[351810813,1738797041741,-500.0,0.00013698,2]
[351810815,1738797041750,-889.48,0.00013698,2]
[351810817,1738797041759,-505.39,0.00013698,2]
[351810819,1738797041769,-500.0,0.00013698,2]
[351810821,1738797041778,-500.0,0.00013698,2]
[351810823,1738797041787,-707.61,0.00013698,2]
[351810825,1738797041798,-500.0,0.00013698,2]
[351810828,1738797041807,-518.82305619,0.00013698,2]
[351810829,1738797041817,-201.90177402,0.00013698,2]
[351810832,1738797041826,-500.0,0.00013698,2]
[351810834,1738797041836,-500.0,0.00013698,2]
[351810836,1738797041845,-500.0,0.00013698,2]
[351810838,1738797041855,-500.26325349,0.00013698,2]
[351810840,1738797041865,-500.0,0.00013698,2]
[351810842,1738797041875,-902.96,0.00013698,2]
[351810844,1738797041885,-11555.83,0.00013698,2]
[351810846,1738797041894,-8099.23,0.00013698,2]
[351810848,1738797041904,-3202.02,0.00013698,2]
[351810850,1738797041913,-708.73,0.00013698,2]
[351810852,1738797041923,-500.0,0.00013698,2]
[351810854,1738797041934,-500.0,0.00013698,2]
[351810856,1738797041944,-500.0,0.00013698,2]
[351810858,1738797041953,-500.0,0.00013698,2]
[351810860,1738797041962,-1346.35,0.00013698,2]
[351810862,1738797041972,-500.0,0.00013698,2]
[351810864,1738797041981,-1043.67,0.00013698,2]
[351810866,1738797041991,-2916.69,0.00013698,2]
[351810868,1738797042000,-500.0,0.00013698,2]
[351810870,1738797042010,-501.83177931,0.00013698,2]
[351810872,1738797042020,-685.84,0.00013698,2]
[351810874,1738797042030,-5180.66,0.00013698,2]
[351810875,1738797042039,-500.0,0.00013698,2]
[351810876,1738797042049,-500.0,0.00013698,2]
[351810877,1738797042058,-2625.97,0.00013698,2]
[351810878,1738797042068,-500.0,0.00013698,2]
[351810879,1738797042078,-500.0,0.00013698,2]
[351810880,1738797042087,-500.0,0.00013698,2]
[351810881,1738797042097,-500.0,0.00013698,2]
[351810882,1738797042106,-500.0,0.00013698,2]
[351810883,1738797042116,-211.0,0.00013698,2]
[351810884,1738797042126,-6073.71,0.00013698,2]
[351810886,1738797042143,-2814.79,0.00013698,2]
[351810887,1738797042153,-396.88942611,0.00013698,2]
[351810888,1738797042162,-500.0,0.00013698,2]
[351810889,1738797042172,-500.0,0.00013698,2]
[351810890,1738797042182,-1619.65,0.00013698,2]
[351810891,1738797042192,-500.0,0.00013698,2]
[351810904,1738797042334,-500.0,0.00013698,2]
[351810905,1738797042344,-2313.67,0.00013698,2]
[351810907,1738797042353,-500.0,0.00013698,2]
[351810909,1738797042363,-500.0,0.00013698,2]
[351810911,1738797042373,-500.0,0.00013698,2]
[351810913,1738797042383,-4999.56,0.00013698,2]
[351810915,1738797042393,-500.0,0.00013698,2]
[351810916,1738797042403,-531.8,0.00013698,2]
[351810917,1738797042412,-657.87,0.00013698,2]
[351810918,1738797042422,-500.0,0.00013698,2]
[351810919,1738797042431,-500.0,0.00013698,2]
[351810920,1738797042441,-500.0,0.00013698,2]
[351810921,1738797042450,-1061.98,0.00013698,2]
[351810922,1738797042460,-644.18,0.00013698,2]
[351810923,1738797042470,-500.0,0.00013698,2]
[351810924,1738797042482,-916.39,0.00013698,2]
[351810925,1738797042492,-502.23891831,0.00013698,2]
[351810926,1738797042501,-500.0,0.00013698,2]
[351810927,1738797042511,-500.0,0.00013698,2]
[351810928,1738797042521,-500.0,0.00013698,2]
[351810929,1738797042530,-500.0,0.00013698,2]
[351810930,1738797042540,-500.0,0.00013698,2]
[351810931,1738797042550,-500.0,0.00013698,2]
[351810932,1738797042559,-500.0,0.00013698,2]
[351810933,1738797042569,-7607.54,0.00013698,2]
[351810934,1738797042583,-247.29528043,0.00013698,2]
[351810935,1738797042593,-503.28480552,0.00013698,2]
[351810936,1738797042603,-1132.22,0.00013698,2]
[351810937,1738797042612,-2418.94,0.00013698,2]
[351810938,1738797042622,-500.0,0.00013698,2]
[351810939,1738797042631,-500.0,0.00013698,2]
[351810940,1738797042641,-500.0,0.00013698,2]
[351810941,1738797042651,-151.0,0.00013698,2]
[351810942,1738797042661,-500.0,0.00013698,2]
[351810943,1738797042672,-500.0,0.00013698,2]
[351810944,1738797042681,-500.0,0.00013698,2]
[351810945,1738797042690,-500.0,0.00013698,2]
[351810946,1738797042699,-647.71755536,0.00013698,2]
[351810947,1738797042709,-506.43348884,0.00013698,2]
[351810948,1738797042719,-500.0,0.00013698,2]
[351810949,1738797042728,-1821.25,0.00013698,2]
[351810950,1738797042738,-1821.25,0.00013698,2]
[351810951,1738797042747,-500.0,0.00013698,2]
[351810952,1738797042756,-1821.25,0.00013698,2]
[351810953,1738797042766,-1821.25,0.00013698,2]
[351810954,1738797042775,-1821.25,0.00013698,2]
[351810955,1738797042785,-1821.25,0.00013698,2]
[351810956,1738797042795,-1821.25,0.00013698,2]
[351810957,1738797042807,-1821.25,0.00013698,2]
[351810958,1738797042816,-1821.25,0.00013698,2]
[351810959,1738797042826,-1821.25,0.00013698,2]
[351810960,1738797042835,-1821.25,0.00013698,2]
[351810961,1738797042844,-500.0,0.00013698,2]
[351810962,1738797042853,-1821.25,0.00013698,2]
[351810963,1738797042863,-1821.25,0.00013698,2]
[351810964,1738797042872,-1821.25,0.00013698,2]
[351810965,1738797042881,-151.0,0.00013698,2]
[351810966,1738797042891,-1821.25,0.00013698,2]
[351810967,1738797042900,-294.968774,0.00013698,2]
[351810968,1738797042910,-1821.25,0.00013698,2]
[351810969,1738797042919,-1821.25,0.00013698,2]
[351810970,1738797042928,-1821.25,0.00013698,2]
[351810971,1738797042938,-863.2,0.00013698,2]
[351810972,1738797042947,-1821.25,0.00013698,2]
[351810973,1738797042956,-500.0,0.00013698,2]
[351810974,1738797042968,-1821.25,0.00013698,2]
[351810975,1738797042978,-1821.25,0.00013698,2]
[351810976,1738797042988,-1821.25,0.00013698,2]
[351810977,1738797042996,-1821.25,0.00013698,2]
[351810978,1738797043005,-500.0,0.00013698,2]
[351810979,1738797043015,-1821.39,0.00013698,2]
[351810980,1738797043025,-151.0,0.00013698,2]
[351810981,1738797043035,-294.968774,0.00013698,2]
[351810982,1738797043044,-1591.88,0.00013698,2]
[351810983,1738797043053,-500.0,0.00013698,2]
[351810984,1738797043064,-2445.51,0.00013698,2]
[351810985,1738797043073,-500.0,0.00013698,2]
[351810986,1738797043083,-500.0,0.00013698,2]
[351810987,1738797043093,-500.0,0.00013698,2]
[351810989,1738797043103,-500.0,0.00013698,2]
[351810991,1738797043112,-152.675225,0.00013698,2]
[351810993,1738797043121,-500.0,0.00013698,2]
[351810995,1738797043131,-500.0,0.00013698,2]
[351810997,1738797043140,-500.0,0.00013698,2]
[351810998,1738797043149,-6218.52,0.00013698,2]
[351810999,1738797043159,-500.0,0.00013698,2]
[351811000,1738797043168,-500.0,0.00013698,2]
[351811001,1738797043178,-611.03,0.00013698,2]
[351811002,1738797043187,-500.0,0.00013698,2]
[351811003,1738797043196,-2688.83,0.00013698,2]
[351811004,1738797043206,-500.0,0.00013698,2]
[351811005,1738797043215,-500.0,0.00013698,2]
[351811006,1738797043224,-500.0,0.00013698,2]
[351811007,1738797043233,-1066.39,0.00013698,2]
[351811009,1738797043243,-500.0,0.00013698,2]
[351811010,1738797043252,-500.0,0.00013698,2]
[351811011,1738797043261,-2608.2,0.00013698,2]
[351811012,1738797043271,-11465.59,0.00013698,2]
[351811013,1738797043280,-500.0,0.00013698,2]
[351811014,1738797043290,-500.0,0.00013698,2]
[351811015,1738797043299,-500.0,0.00013698,2]
[351811016,1738797043308,-493.45439239,0.00013698,2]
[351811017,1738797043317,-500.0,0.00013698,2]
[351811018,1738797043326,-500.0,0.00013698,2]
[351811019,1738797043336,-500.0,0.00013698,2]
[351811020,1738797043345,-575.4,0.00013698,2]
[351811021,1738797043355,-720.09,0.00013698,2]
[351811022,1738797043365,-500.0,0.00013698,2]
[351811023,1738797043374,-500.0,0.00013698,2]
[351811024,1738797043383,-500.0,0.00013698,2]
[351811026,1738797043393,-500.0,0.00013698,2]
[351811028,1738797043404,-500.0,0.00013698,2]
[351811029,1738797043414,-500.0,0.00013698,2]
[351811030,1738797043424,-105672.42,0.00013698,2]
[351811031,1738797043434,-500.0,0.00013698,2]
[351811032,1738797043443,-519.26,0.00013698,2]
[351811033,1738797043453,-4840.95,0.00013698,2]
[351811034,1738797043462,-500.0,0.00013698,2]
[351811035,1738797043471,-33879.81,0.00013698,2]
[351811036,1738797043480,-500.0,0.00013698,2]
[351811037,1738797043490,-559.51,0.00013698,2]
[351811038,1738797043499,-500.0,0.00013698,2]
[351811039,1738797043509,-500.0,0.00013698,2]
[351811040,1738797043518,-465.23924765,0.00013698,2]
[351811041,1738797043527,-500.0,0.00013698,2]
[351811042,1738797043536,-4714.57,0.00013698,2]
[351811043,1738797043546,-1513.33,0.00013698,2]
[351811045,1738797043556,-606.45,0.00013698,2]
[351811046,1738797043567,-500.0,0.00013698,2]
[351811047,1738797043580,-500.0,0.00013698,2]
[351811048,1738797043590,-2920.37,0.00013698,2]
[351811049,1738797043600,-4124.38,0.00013698,2]
[351811050,1738797043609,-4124.38,0.00013698,2]
[351811051,1738797043618,-787.1,0.00013698,2]
[351811052,1738797043628,-4124.38,0.00013698,2]
[351811053,1738797043637,-4124.38,0.00013698,2]
[351811054,1738797043648,-4124.38,0.00013698,2]
[351811055,1738797043658,-500.0,0.00013698,2]
[351811056,1738797043668,-4124.38,0.00013698,2]
[351811058,1738797043677,-4124.38,0.00013698,2]
[351811059,1738797043687,-4124.38,0.00013698,2]
[351811061,1738797043696,-4124.38,0.00013698,2]
[351811063,1738797043706,-4124.38,0.00013698,2]
[351811064,1738797043715,-4124.38,0.00013698,2]
[351811065,1738797043724,-500.0,0.00013698,2]
[351811066,1738797043734,-4124.38,0.00013698,2]
[351811067,1738797043744,-500.0,0.00013698,2]
[351811068,1738797043753,-4124.38,0.00013698,2]
[351811069,1738797043763,-1774.03,0.00013698,2]
[351811070,1738797043772,-4124.38,0.00013698,2]
[351811071,1738797043781,-4124.38,0.00013698,2]
[351811072,1738797043791,-4124.38,0.00013698,2]
[351811073,1738797043800,-4124.38,0.00013698,2]
[351811074,1738797043810,-4124.38,0.00013698,2]
[351811075,1738797043820,-4124.38,0.00013698,2]
[351811076,1738797043830,-2536.09,0.00013698,2]
[351811077,1738797043839,-4124.38,0.00013698,2]
[351811078,1738797043849,-4124.38,0.00013698,2]
[351811079,1738797043858,-4124.38,0.00013698,2]
[351811080,1738797043868,-1057.55,0.00013698,2]
[351811082,1738797043877,-4124.38,0.00013698,2]
[351811083,1738797043887,-4124.46428907,0.00013698,2]
[351811084,1738797043896,-3049.9,0.00013698,2]
[351811085,1738797043906,-500.0,0.00013698,2]
[351811087,1738797043916,-664.27,0.00013698,2]
[351811088,1738797043929,-501.12136402,0.00013698,2]
[351811089,1738797043940,-500.0,0.00013698,2]
[351811090,1738797043951,-921.28,0.00013698,2]
[351811091,1738797043967,-500.0,0.00013698,2]
[351811092,1738797043980,-500.0,0.00013698,2]
[351811093,1738797043990,-7093.78,0.00013698,2]
[351811094,1738797044000,-500.0,0.00013698,2]
[351811095,1738797044010,-635.58214511,0.00013698,2]